Cogmind - Beta 14 @@@ ROGUE MODE // 2024.11.23 @ 21:05:38 Player: skye Result: Destroyed by G-47 Trooper with Particle Gun Performance ------------- Evolutions (0) 0 Regions Visited (1) 200 Robots Destroyed (14) 70 Value Destroyed (289) 289 Prototype IDs (0) 0 Alien Tech Used (0) 0 Bonus (0) 0 TOTAL SCORE: 559 Bonus ------- None Cogmind --------- Core Integrity 0/250 Matter 297/300 Energy 194/250 System Corruption 2% Temperature Cool (17) Movement Rolling (95) Ox1 Location -10/Materials Parts ------- > --- POWER (1) -------- Ion Engine > --- PROPULSION (2) --- Wheel Wheel > --- UTILITY (2) ------ Large Storage Unit Targeting Computer > --- WEAPON (2) ------- Medium Laser Heavy Assault Rifle > --- INVENTORY (15) --- Ion Engine Wheel Hover Unit Flight Unit Improved Heat Sink Small Storage Unit High-capacity Battery (250) Medium Matter Pod (96) Targeting Computer Shield Generator Beam Rifle Beam Rifle Heavy Assault Rifle Heavy Assault Rifle Hammer Peak State ------------ > --- POWER ------------ Light Ion Engine > --- PROPULSION ------- Wheel Wheel > --- UTILITY ---------- Large Storage Unit Targeting Computer > --- WEAPON ----------- Medium Laser Heavy Assault Rifle > --- INVENTORY -------- Wheel Hover Unit Improved Heat Sink Small Storage Unit High-capacity Battery Medium Matter Pod Targeting Computer Shield Generator Small Laser Beam Rifle Beam Rifle Heavy Assault Rifle Heavy Assault Rifle [Rating: 10] Favorites ----------- Power Light Ion Engine Engine Light Ion Engine Propulsion Light Treads Treads Light Treads Leg Aluminum Leg Wheel Wheel Utility Large Storage Unit Storage Large Storage Unit Processor Targeting Computer Weapon Medium Laser Energy Gun Medium Laser Ballistic Gun Assault Rifle Launcher Grenade Launcher Build | -11 -10 ------- Run | Yrd Mat Slots Evolved . | . . Power . | . . Propulsion . | . . Utility . | . . Weapon . | . . Parts Attached 18 | 3 15 Power 3 | . 3 Engine 3 | . 3 Core . | . . Reactor . | . . Propulsion 6 | 3 3 Treads 3 | 2 1 Leg 1 | 1 . Wheel 2 | . 2 Hover . | . . Flight . | . . Utility 2 | . 2 Device . | . . Storage 1 | . 1 Processor 1 | . 1 Hackware . | . . Protection . | . . Artifact . | . . Weapon 7 | . 7 Energy Gun 3 | . 3 Energy Cannon . | . . Ballistic Gun 3 | . 3 Ballistic Cannon . | . . Launcher 1 | . 1 Special Weapon . | . . Impact Weapon . | . . Slashing Weapon . | . . Piercing Weapon . | . . Special Melee Weapon . | . . Unidentified Prototypes . | . . Parts Lost 6 | . 6 Power 2 | . 2 Propulsion 2 | . 2 Utility . | . . Weapon 2 | . 2 Highest Loss Streak 3 | . 3 To Critical Strikes 1 | . 1 Average Slot Usage (%) 76 | . 76 Engine 11 | . 11 Treads 12 | . 12 Wheel 12 | . 12 Storage 14 | . 14 Processor 5 | . 5 Energy Gun 8 | . 8 Ballistic Gun 11 | . 11 Peak Build Rating 10 | 6 10 Average Rating 6 | 5 6 On Entrance 6 | 6 6 Naked Turns . | . . Heaviest Build 32 | 12 32 Greatest Support 40 | 40 40 Greatest Overweight (x) 2 | . 2 Average Overweight (x) 1 | . 1 Largest Inventory Capacity 15 | 8 15 Average Capacity 13 | 8 14 Most Carried 15 | 7 15 Average Carried 8 | 5 8 Final Capacity 15 | 8 15 Final Carried 15 | 4 15 Class Distribution -------------------- 100% | Mutant Dominant Class ---------------- Mutant | -10/Materials Resources | -11 -10 ----------- Run | Yrd Mat Matter Collected 675 | 228 447 Remotely . | . . Salvage Created 571 | . 571 Parts 23 | . 23 Haulers Intercepted 2 | . 2 Recyclers Shooed 1 | . 1 Parts Field Recycled . | . . Retrieved Matter . | . . Parts Self-Destructed . | . . Prevented . | . . Kills | -11 -10 ------- Run | Yrd Mat Combat Hostiles Destroyed 7 | . 7 Guns 5 | . 5 AOE 2 | . 2 Classes Destroyed 7 | . 7 Worker 1 | . 1 Hauler 2 | . 2 Recycler 2 | . 2 Operator 1 | . 1 Watcher 1 | . 1 Swarmer 1 | . 1 Grunt 6 | . 6 Best Kill Streak 4 | . 4 Combat Bots Only 4 | . 4 Max Kills in Single Turn 2 | . 2 Gunslinging . | . . Exploded 1 | . 1 Melee . | . . Uniques/NPCs Destroyed . | . . Combat | -11 -10 -------- Run | Yrd Mat Hostile Shots Fired 96 | . 96 Missed 25 | . 25 Damage Taken 923 | . 923 Core 259 | . 259 Absorbed by Shields . | . . Regen/Repaired (Parts) 47 | . 47 Core Remaining (%) 100 | 100 . Volleys Fired 78 | . 78 Largest 2 | . 2 Hottest 73 | . 73 Shots Fired 92 | . 92 Gun 86 | . 86 Cannon . | . . Launcher 6 | . 6 Special . | . . Kinetic 51 | . 51 Thermal 35 | . 35 Explosive 6 | . 6 Electromagnetic . | . . Robot Hit Streak 7 | . 7 Robot Miss Streak 3 | . 3 Penetration Max . | . . Secondary Targets . | . . Shots Hit Robots 54 | . 54 Core Hits 26 | . 26 Critical Kills . | . . Critical Parts Destroyed 1 | . 1 Critical Strikes 4 | . 4 Burn 3 | . 3 Destroy 1 | . 1 Melee Attacks . | . . Impact . | . . Slashing . | . . Piercing . | . . Sneak Attacks . | . . Combat Hostiles . | . . Follow-up Attacks . | . . Damage Inflicted 885 | . 885 Guns 663 | . 663 Cannons . | . . Explosions 222 | . 222 Melee . | . . Ramming . | . . Kinetic 399 | . 399 Thermal 264 | . 264 Explosive 222 | . 222 Electromagnetic . | . . Impact . | . . Slashing . | . . Piercing . | . . Highest Corruption 2 | . 2 Average Corruption 2 | . 2 Corruption Purged . | . . Corruption Blocked . | . . Effects 4 | . 4 Message Errors 1 | . 1 Matter Fused 2 | . 2 Data Loss (minor) 1 | . 1 Overload Shots . | . . Overflow Damage . | . . Projectiles . | . . Explosions . | . . Melee . | . . Knockbacks . | . . Impact . | . . Kinetic . | . . Secondary . | . . Self-Inflicted Damage . | . . Shots . | . . Rammed . | . . Targets Rammed . | . . Kicked . | . . Crushed . | . . Highest Temperature 189 | . 189 Average Temperature 49 | . 49 Received Heat Transfer 411 | . 411 Siege Activations . | . . Robots Corrupted . | . . Combat Hostiles . | . . Parts Fried . | . . Impact Corruptions . | . . Robots Melted . | . . Combat Hostiles . | . . Parts Melted . | . . Heat Transferred 999 | . 999 Parts Sabotaged . | . . Parts Stolen . | . . Parts Stripped . | . . Power Chain Reactions . | . . Alert | -11 -10 ------- Run | Yrd Mat Peak Influence 170 | . 170 Initial . | . . Average 42 | . 43 Maximum Alert Level . | . . Low Security (%) 100 | 100 100 Level 1 . | . . Level 2 . | . . Level 3 . | . . Level 4 . | . . Level 5 . | . . High Security . | . . Max Security . | . . Squads Dispatched 2 | . 2 Investigation 1 | . 1 Extermination . | . . Reinforcement 1 | . 1 Assault . | . . Garrison . | . . Intercept . | . . Searches Triggered . | . . Construction Impeded . | . . Haulers Reinforced . | . . Active Scanning Responses . | . . Cargo Convoy Interrupts . | . . Stealth | -11 -10 --------- Run | Yrd Mat Distress Signals . | . . Communications Jammed . | . . Distress Signals . | . . Times Spotted 21 | . 21 Peak Tracking Total 4 | . 4 Tactical Retreats 1 | . 1 Traps | -11 -10 ------- Run | Yrd Mat Traps Triggered 3 | . 3 Indirectly . | . . Trap Hack Attempts . | . . Triggered . | . . Disarmed . | . . Reprogrammed . | . . Reused . | . . Traps Extracted . | . . Installed . | . . Triggered . | . . Machines | -11 -10 ---------- Run | Yrd Mat Machines Disabled . | . . Max in Single Turn . | . . Machines Repaired . | . . Machines Dismantled . | . . Machines Sabotaged . | . . Overloaded Fab Kills . | . . Hacking | -11 -10 --------- Run | Yrd Mat Machines Accessed 6 | . 6 Terminals 4 | . 4 Fabricators . | . . Repair Stations 1 | . 1 Recycling Units 1 | . 1 Scanalyzers . | . . Garrison Access . | . . Total Hacks 20 | . 20 Successful 11 | . 11 Failed 9 | . 9 Catastrophic . | . . Database Lockouts . | . . Manual 15 | . 15 Terminals 16 | . 16 Fabricators . | . . Repair Stations 3 | . 3 Recycling Units 1 | . 1 Scanalyzers . | . . Garrison Access . | . . Terminal Hacks 5 | . 5 Emergency Access Points 1 | . 1 Terminal Index 1 | . 1 Alert Level 1 | . 1 Locate Traps 1 | . 1 Recall Investigation 1 | . 1 Fabricator Hacks . | . . Repair Station Hacks 2 | . 2 Scan Component 1 | . 1 Repair 1 | . 1 Recycling Unit Hacks 1 | . 1 Report Inventory 1 | . 1 Scanalyzer . | . . Garrison Access Hacks . | . . Unauthorized Hacks 3 | . 3 Terminals 3 | . 3 Botnet 3 | . 3 Fabricators . | . . Repair Stations . | . . Recycling Units . | . . Scanalyzers . | . . Garrison Access . | . . Data Cores Recovered . | . . Used . | . . Hacking Detections 4 | . 4 Full Trace Events . | . . Feedback Events . | . . Feedback Blocked . | . . Robot Schematics Acquired . | . . Robots Built . | . . Authchips . | . . Time . | . . Total Robot Build Rating . | . . Part Schematics Acquired . | . . Parts Built . | . . Authchips . | . . Time . | . . Total Part Build Rating . | . . Parts Repaired 1 | . 1 Time 26 | . 26 Parts Recycled . | . . Recycled Matter . | . . Retrieved Matter . | . . Retrieved Components . | . . Parts Scanalyzed . | . . Part Schematics Acquired . | . . Parts Damaged . | . . Bothacking | -11 -10 ------------ Run | Yrd Mat Used RIF Installer . | . . Robots Hacked . | . . Non-combat . | . . Combat . | . . Robot Hacks Applied . | . . Relay Couplers Released . | . . Fabnet Peak Effective % . | . . Robots Rewired . | . . Allies Hacked . | . . Hacks Repelled . | . . Allies | -11 -10 -------- Run | Yrd Mat Total Allies . | . . Largest Group . | . . Highest-Rated Group . | . . Highest-Rated Ally . | . . Total Orders . | . . Ally Attacks . | . . Total Damage . | . . Kills . | . . Allies Corrupted . | . . Allies Melted . | . . Intel | -11 -10 ------- Run | Yrd Mat Robot Analysis Total . | . . Derelict Logs Recovered . | . . Drone Launches . | . . Drone Recoveries . | . . Exploration | -11 -10 ------------- Run | Yrd Mat Turns Passed 1063 | 14 1049 Spaces Moved 660 | 7 653 Core . | . . Treads 159 | 4 155 Legs 3 | 3 . Wheels 498 | . 498 Hover . | . . Flight . | . . Fastest Speed 95 | 120 95 Average Speed 118 | 142 118 Slowest Speed 240 | 160 240 Overloaded Moves . | . . Propulsion Burnouts . | . . Robots Hopped . | . . Cave-ins Triggered . | . . Exploration Rate (%) 40 | 2 78 Regions Visited 1 Branch Regions . Pre-discovered Areas . | . . Known Exits Taken . | . . Unknown Exits Taken 1 | 1 . Scrap Searched . | . . Spaces Dug . | . . Terrain Destroyed 22 | . 22 Melee . | . . Projectile . | . . AOE 22 | . 22 Terrain Rammed . | . . Walls Destroyed . | . . Machines Disabled . | . . Actions | -11 -10 --------- Run | Yrd Mat Total 850 | 13 837 Wait 69 | . 69 Move 659 | 6 653 Hop . | . . Pick Up 17 | . 17 Fast Attach 7 | . 7 Attach 6 | 2 4 Detach 3 | 2 1 Swap 5 | 1 4 Drop 6 | 2 4 Fire 78 | . 78 Melee . | . . Ram . | . . Kick . | . . Crush . | . . Escape Stasis . | . . Rewire . | . . Trap . | . . Miscellaneous . | . . Route ------- -11/Scrapyard -10/Materials (discovered 3 exits: [*Mat x2] / [*Min]) History --------- Turn | Location | Event 1 | -11/Scrapyard | Discovered new exit (range 3) 15 | -11/Scrapyard | Entered Materials 257 | -10/Materials | Core integrity fell below 50% 319 | -10/Materials | Build established: Mutant 480 | -10/Materials | Discovered new exit (range 16) 576 | -10/Materials | Discovered new exit (range 6) 616 | -10/Materials | Core integrity fell below 20% 646 | -10/Materials | Lost 3 parts (1p1n1w) 761 | -10/Materials | Discovered new exit (range 4) 912 | -10/Materials | Repaired Med. Laser 1064 | -10/Materials | Destroyed by G-47 Trooper with Particle Gun Last Messages --------------- 00936_ R-06 Scavenger inserts Com. Wheel into recycling unit. 00939_ R-06 Scavenger inserts Lgt. Assault Rifle into recycling unit. 00940_ Recycling unit begins recycling process. 00952_ Dropped Sml. Laser. 00956_ Acquired Hammer. 00963_ Acquired Flight Unit. 01010_ System corrupted: Matter fused (-6). 01015_ R-06 Scavenger inserts Lgt. Assault Rifle into recycling unit. 01019_ Recycling unit begins recycling process. 01021_ R-06 Scavenger inserts Lgt. Assault Rifle into recycling unit. 01035_ R-06 Scavenger collects Sml. Laser. 01044_ A-02 Transporter destroyed. 01051_ Dropped Lgt. Ion Engine. 01054_ Acquired 55 matter. 01058_ R-06 Scavenger collects Sml. Laser. 01061_ R-06 Scavenger collects Lgt. Ion Engine. Map ----- +----------------------------------------------------+ | | | | | ######??######????????????????????????######?##### | | #?? #???????????????????????# # | | #? #???????????????????????# """ # """ | | #? =#???????????????????????# """ # """ | | ## " #???????????????????????# """ # """ | | T" """ #???????????????????????# # | | ### # """ #???????????????????????# """ ###### | | %==# """ #???????????????????????# """ #???# | | "" + ???????? ???????????# """ #???# | | ####* """ #????????g ???????????# #???# | | # = # "" #????????# ???????????#####+##???# | | + # "" !#????????# ??????????#### ##### | | # # " #????????#g #?????????# | | # # [ #????????# ?????????# ## | | #! ! #?######????????# ?????????#??# [ ##+### | | #!! #???????????????# ??????####+### ## | | =#!! #???????????????+ ??????# # ## | | ######???????????????# ??????# + ## """ | | ########?????????????# ??????# # ## """ | | # ??????????????# #??????# # + """ | | # """""??????????????# #??????# ?# ## | | # """"""?????????????# #??????######?# ## | | # """"""?????????????# ###############^^## | | + """"""?????????????+ @ ! r ## "" | | ## """"""?????????????# [ ## "Y | | ## ????????????# ###### "" ## "" | | ## ???????????# #????# T" ## | | ###########???????????# #????# "" ####### | | ######????????????????# #????# | | #????????????????# #????# | | #????????????????+ +????# ##" "########## | | " #????????????????# #????# ##"R"# | | "" #????????????????# ?????# ##"""# """ " | | "" #????????????????# ?????# ###### """ " | | "" #????????????????####?????# #????# """ " | | " #????????????????????????## #????# | | #????????????????????????# ##########+### | | +###########+####?????????????# | | ????????????# < | | ????????????# | | ????????????# ######## #### | | ################??????????????#?#?????????# #### | | #?????????????????????????????????????????# | | #?????????????????????????????????????????# [[ | | #????????????????????? ???????????????# [[ | | #?????????????????? ??????????????# ! | | #?????????????????" ??????????????#= [ ! | | #?????????????????T #?????????????# ! !! | +----------------------------------------------------+ Best States ------------- Heat Dissipation 25 Energy Generation 10 Energy Capacity 250 Matter Stores 300 Matter Capacity 300 Sight Range 16 Terrain Scan Density 10 Evasion (%) 41 Targeting Accuracy 5 Recoil Reduction 2 Item Schematics ----------------- None Robot Schematics ------------------ None Fabricated ------------ Nothing Alien Tech Used ----------------- None Achievements -------------- None Challenges ------------ None Game ------ Seed ProtonDataPendant Manual? 0 Play Time 00:13:22 Cumulative 58.9 hours Start 2024.11.23 @ 20:58:44 End 2024.11.23 @ 21:05:38 Sessions 1 Manual Loads 0 Difficulty Rogue Special Mode None Game No. 84 Rogue 40 Adventurer 44 Explorer 0 Win Type - Total 0 Types 0/0/0/0/0/0/0/0/0 Lore% 18 Gallery% 44 Achievement% 32 Wizard Run 0 Options --------- Layout 1 ASCII 0 Keyboard 1 Movement Vi Keybinds 0 Fullscreen 1 Font 24/Terminus Map View 50x40 Zoom Use 0% Tactical HUD 1 Map Filters NONE Filters NONE Steam 1 RUN: eb53b59d-669c-46ed-a020-ba433befaf6c